fUST/lending_fUST_20241226
["ID","MTS","AMOUNT","RATE_DAILY","PERIOD"]
[346709551,1735223440543,-500.0,0.0001919,2]
[346709552,1735223440552,-500.0,0.0001919,2]
[346709553,1735223440561,-8158.98,0.0001919,2]
[346709554,1735223440570,-500.0,0.0001919,2]
[346709556,1735223440580,-347.71,0.0001919,2]
[346709557,1735223440590,-500.0,0.0001919,2]
[346709558,1735223440600,-500.0,0.0001919,2]
[346709559,1735223440610,-543.82,0.0001919,2]
[346709560,1735223440619,-500.0,0.0001919,2]
[346709561,1735223440629,-500.0,0.0001919,2]
[346709562,1735223440639,-500.0,0.0001919,2]
[346709563,1735223440648,-500.0,0.0001919,2]
[346709564,1735223440658,-2826.87,0.0001919,2]
[346709565,1735223440669,-500.0,0.0001919,2]
[346709566,1735223440678,-500.0,0.0001919,2]
[346709567,1735223440688,-500.0,0.00019191,2]
[346709568,1735223440698,-263.15215366,0.00019191,2]
[346709569,1735223440707,-500.0,0.00019191,2]
[346709570,1735223440718,-501.97760397,0.00019191,2]
[346709571,1735223440732,-500.0,0.00019191,2]
[346709572,1735223440742,-501.93125093,0.00019191,2]
[346709573,1735223440752,-173.4,0.00019191,2]
[346709575,1735223440763,-421.75375932,0.00019191,2]
[346709577,1735223440772,-500.0,0.00019191,2]
[346709579,1735223440784,-500.0,0.00019192,2]
[346709580,1735223440794,-2103.1319051,0.00019199,2]
[346709581,1735223440804,-410.48299875,0.00019199,2]
[346709582,1735223440813,-570.06832703,0.000192,2]
[346709583,1735223440822,-666.0,0.00019365,2]
[346709584,1735223440832,-150.0,0.000194,2]
[346709585,1735223440842,-500.0,0.00019462,2]
[346709587,1735223440852,-611.54,0.00019462,2]
[346709589,1735223440861,-511.94,0.00019462,2]
[346709591,1735223440871,-500.0,0.00019462,2]
[346709593,1735223440880,-1285.68,0.00019462,2]
[346709594,1735223440890,-500.0,0.00019463,2]
[346709595,1735223440899,-500.0,0.00019463,2]
[346709596,1735223440908,-500.0,0.00019463,2]
[346709597,1735223440918,-500.0,0.00019463,2]
[346709598,1735223440927,-500.0,0.00019463,2]
[346709599,1735223440936,-605.81,0.00019463,2]
[346709600,1735223440946,-500.0,0.00019463,2]
[346709601,1735223440956,-564.07,0.00019463,2]
[346709602,1735223440965,-500.0,0.00019463,2]
[346709603,1735223440975,-554.56,0.00019463,2]
[346709604,1735223440984,-652.97,0.00019463,2]
[346709605,1735223440994,-500.0,0.00019463,2]
[346709606,1735223441003,-781.04,0.00019463,2]
[346709607,1735223441012,-847.23,0.00019463,2]
[346709608,1735223441022,-500.0,0.00019463,2]
[346709609,1735223441033,-3592.33,0.00019463,2]
[346709610,1735223441042,-500.0,0.00019463,2]
[346709611,1735223441050,-500.0,0.00019463,2]
[346709612,1735223441060,-1470.11,0.00019463,2]
[346709613,1735223441069,-500.0,0.00019463,2]
[346709614,1735223441079,-500.0,0.00019463,2]
[346709615,1735223441088,-500.0,0.00019463,2]
[346709616,1735223441097,-500.0,0.00019463,2]
[346709617,1735223441106,-500.0,0.00019463,2]
[346709618,1735223441115,-500.0,0.00019463,2]
[346709619,1735223441125,-224.85811985,0.00019463,2]
[346709704,1735223516167,2176.13162002,7.77e-05,2]
[346709705,1735223516190,2672.24837998,7.77e-05,2]
[346709739,1735224263041,158.78667457,0.00023,120]
[346709741,1735224343115,-400.0,0.00013973,2]
[346709742,1735224343150,-211.62778903,0.00016661,2]
[346709743,1735224343175,-300.0,0.00016999,2]
[346709744,1735224343199,-1183.34866899,0.00017,7]
[346709764,1735224426139,-300.0,0.00016999,2]
[346709765,1735224426160,-8.34522044,0.00017,7]
[346709766,1735224444079,-6746.43055791,0.00017,7]
[346709767,1735224444111,-7667.87555266,0.00017,7]
[346709768,1735224444134,-250.0,0.00017869,2]
[346709769,1735224444158,-1582.83965964,0.00018,2]
[346709770,1735224547099,-750.0,0.00017819,2]
[346709771,1735224547121,-174.51506034,0.000179,2]
[346709772,1735224547143,-300.0,0.00017998,2]
[346709773,1735224547164,-2462.73797502,0.00017999,2]
[346709774,1735224547186,-300.0,0.00017999,2]
[346709775,1735224547207,-197.49599235,0.00017999,2]
[346709776,1735224547228,-253.49052165,0.00017999,2]
[346709777,1735224547249,-2780.97914999,0.00018,2]
[346709778,1735224547273,-10406.95626497,0.00018,2]
[346709779,1735224551168,-41175.6856443,0.00018,2]
[346709780,1735224551191,-38916.1608757,0.00018,2]
[346709781,1735224558104,-80848.88152273,0.00018,2]
[346709782,1735224564096,-14694.00883512,0.00018,2]
[346709783,1735224566100,-1390.48957499,0.00018,2]
[346709784,1735224566122,-124634.23335499,0.00018,2]
[346709785,1735224568112,-25791.32095464,0.00018,2]
[346709786,1735224568136,-706373.31916616,0.00018,2]
[346709787,1735224574100,-389.02278008,0.000179,2]
[346709788,1735224574125,-764272.60099576,0.00018,2]
[346709856,1735224632649,-297.26927146,0.000179,2]
[346709860,1735224632659,-300.0,0.00017999,2]
[346709864,1735224632668,-353.20432054,0.00018,2]
[346709868,1735224632680,-264778.24517777,0.00018,2]
[346710022,1735224638913,-556.48166134,0.00018,2]
[346710023,1735224638924,-403.00995764,0.00018,2]
[346710025,1735224638968,-1295.73728711,0.00018,2]
[346710027,1735224638980,-1379.9999995,0.00018,2]
[346710030,1735224638992,-1446.2725006,0.00018,2]
[346710051,1735224640573,-1752.5,0.00018,2]
[346710052,1735224640638,-4811.1,0.00018,2]
[346710053,1735224640655,-9084.26833866,0.00018,2]
[346710066,1735224643463,-2558.17916429,0.00018,2]
[346710069,1735224643586,-3311.6,0.00018,2]
[346710073,1735224643671,-1592.37046297,0.00018,2]
[346710074,1735224643683,-11714.49999987,0.00018,2]
[346710093,1735224646623,-12387.29703623,0.00018,2]
[346710094,1735224646697,-34.26058005,0.00018,2]
[346710095,1735224738669,1756.0,0.00023,120]
[346710096,1735225553116,-400.0,0.00013973,2]
[346710097,1735225553138,-133.24371657,0.00016,2]
[346710098,1735225626131,-305.82580998,0.00015682,2]
[346710099,1735225626152,-332.01221305,0.0001584,2]
[346710100,1735225626174,-1989.82921943,0.00016,2]
[346710101,1735225626195,-186.97290464,0.00017898,2]
[346710102,1735225626215,-350.12050209,0.000179,2]
[346710103,1735225626242,-500.0,0.00017973,2]
[346710104,1735225626263,-152.0,0.00017994,2]
[346710105,1735225626283,-300.0,0.00017996,2]
[346710106,1735225626305,-300.0,0.00017996,2]
[346710107,1735225626326,-173.549,0.00017997,2]
[346710108,1735225626347,-500.0,0.00017997,2]
[346710109,1735225626368,-185.74181722,0.00017997,2]
[346710110,1735225626391,-500.0,0.00017997,2]
[346710111,1735225626413,-971.58,0.00017997,2]
[346710112,1735225626542,-500.0,0.00017997,2]
[346710113,1735225626565,-500.0,0.00017997,2]
[346710114,1735225626587,-500.0,0.00017997,2]
[346710115,1735225626608,-500.0,0.00017997,2]
[346710116,1735225626632,-500.0,0.00017997,2]
[346710117,1735225626654,-500.0,0.00017997,2]
[346710118,1735225626676,-500.0,0.00017997,2]
[346710119,1735225626699,-500.0,0.00017997,2]
[346710120,1735225626724,-500.0,0.00017997,2]
[346710121,1735225626746,-500.0,0.00017997,2]
[346710122,1735225626768,-646.30638108,0.00017997,2]
[346710123,1735225626790,-500.0,0.00017997,2]
[346710124,1735225626812,-449.80134307,0.00017997,2]
[346710125,1735225626833,-500.0,0.00017998,2]
[346710126,1735225626853,-215.36364777,0.00017998,2]
[346710127,1735225626874,-505.34516855,0.00017998,2]
[346710128,1735225626895,-500.0,0.00017998,2]
[346710129,1735225626916,-502.4996419,0.00017998,2]
[346710130,1735225626938,-500.0,0.00017998,2]
[346710131,1735225626960,-500.0,0.00017998,2]
[346710132,1735225626983,-500.0,0.00017998,2]
[346710133,1735225627005,-500.0,0.00017998,2]
[346710134,1735225627026,-500.0,0.00017998,2]
[346710135,1735225627048,-500.0,0.00017998,2]
[346710136,1735225627069,-500.0,0.00017998,2]
[346710137,1735225627092,-500.0,0.00017998,2]
[346710138,1735225627113,-556.18725913,0.00017998,2]
[346710139,1735225627135,-500.0,0.00017998,2]
[346710140,1735225627156,-500.0,0.00017998,2]
[346710141,1735225627178,-502.64208422,0.00017998,2]
[346710142,1735225627199,-500.0,0.00017998,2]
[346710143,1735225627224,-500.0,0.00017998,2]
[346710144,1735225627245,-500.0,0.00017998,2]
[346710145,1735225627267,-500.0,0.00017998,2]
[346710146,1735225627289,-500.0,0.00017998,2]
[346710147,1735225627310,-525.1,0.00017998,2]
[346710148,1735225627332,-500.0,0.00017998,2]
[346710149,1735225627354,-500.0,0.00017998,2]
[346710150,1735225627375,-522.76198356,0.00017998,2]
[346710151,1735225627403,-500.0,0.00017998,2]
[346710152,1735225627427,-500.0,0.00017998,2]
[346710153,1735225627450,-861.59,0.00017998,2]
[346710154,1735225627475,-500.0,0.00017998,2]
[346710155,1735225627497,-1006.28,0.00017998,2]
[346710156,1735225627519,-500.0,0.00017998,2]
[346710157,1735225627541,-1193.69,0.00017998,2]
[346710158,1735225627564,-500.0,0.00017998,2]
[346710159,1735225627585,-500.0,0.00017998,2]
[346710160,1735225627608,-4981.93,0.00017998,2]
[346710161,1735225627629,-500.0,0.00017998,2]
[346710162,1735225627650,-500.0,0.00017998,2]
[346710163,1735225627671,-312.06283618,0.00017998,2]
[346710164,1735225635087,-500.0,0.00017973,2]
[346710165,1735225635110,-187.93716382,0.00017998,2]
[346710166,1735225635134,-1908.65,0.00017998,2]
[346710167,1735225635157,-500.0,0.00017998,2]
[346710168,1735225635180,-500.0,0.00017998,2]
[346710169,1735225635204,-500.0,0.00017998,2]
[346710170,1735225635226,-500.0,0.00017998,2]
[346710171,1735225635248,-500.0,0.00017998,2]
[346710172,1735225635271,-500.0,0.00017998,2]
[346710173,1735225635293,-518.92,0.00017998,2]
[346710174,1735225635314,-200.0,0.00017998,2]
[346710175,1735225635337,-500.0,0.00017998,2]
[346710176,1735225635360,-226.05,0.00017998,2]
[346710177,1735225635382,-500.0,0.00017998,2]
[346710178,1735225635408,-500.0,0.00017998,2]
[346710179,1735225635431,-500.0,0.00017998,2]
[346710180,1735225635452,-500.0,0.00017998,2]
[346710181,1735225635481,-340.97740866,0.00017998,2]
[346710182,1735225635503,-500.0,0.00017998,2]
[346710183,1735225635525,-500.0,0.00017998,2]
[346710184,1735225635548,-500.0,0.00017998,2]
[346710185,1735225635569,-500.64848158,0.00017998,2]
[346710186,1735225635591,-505.19806812,0.00017998,2]
[346710187,1735225635613,-507.99,0.00017998,2]
[346710188,1735225635637,-1782.55,0.00017998,2]
[346710189,1735225635659,-500.0,0.00017998,2]
[346710190,1735225635820,-500.0,0.00017998,2]
[346710191,1735225635843,-500.0,0.00017998,2]
[346710192,1735225635865,-501.52303775,0.00017998,2]
[346710193,1735225635887,-500.0,0.00017998,2]
[346710194,1735225635913,-500.0,0.00017998,2]
[346710195,1735225635936,-500.0,0.00017998,2]
[346710196,1735225635958,-500.0,0.00017998,2]
[346710197,1735225635983,-500.0,0.00017998,2]
[346710198,1735225636005,-1577.27,0.00017998,2]
[346710199,1735225636027,-500.0,0.00017998,2]
[346710200,1735225636049,-946.37,0.00017998,2]
[346710201,1735225636070,-505.87702639,0.00017998,2]
[346710202,1735225636092,-762.23,0.00017998,2]
[346710203,1735225636114,-805.2,0.00017998,2]
[346710204,1735225636137,-645.27,0.00017998,2]
[346710205,1735225636158,-500.0,0.00017998,2]
[346710206,1735225636181,-720.54,0.00017998,2]
[346710207,1735225636202,-500.0,0.00017998,2]
[346710208,1735225636224,-500.0,0.00017998,2]
[346710209,1735225636247,-500.0,0.00017998,2]
[346710210,1735225636268,-500.0,0.00017998,2]
[346710211,1735225636289,-500.0,0.00017998,2]
[346710212,1735225636310,-500.0,0.00017999,2]
[346710213,1735225636331,-500.0,0.00017999,2]
[346710214,1735225636352,-500.0,0.00017999,2]
[346710215,1735225636373,-500.0,0.00017999,2]
[346710216,1735225636400,-500.0,0.00017999,2]
[346710217,1735225636421,-500.0,0.00017999,2]
[346710218,1735225636444,-225.30154097,0.00017999,2]
[346710219,1735225636467,-500.0,0.00017999,2]
[346710220,1735225636490,-500.0,0.00017999,2]
[346710221,1735225636513,-500.0,0.00017999,2]
[346710222,1735225636534,-500.0,0.00017999,2]
[346710223,1735225636556,-500.0,0.00017999,2]
[346710224,1735225636577,-500.0,0.00017999,2]
[346710225,1735225636599,-500.0,0.00017999,2]
[346710226,1735225636620,-500.0,0.00017999,2]
[346710227,1735225636642,-500.0,0.00017999,2]
[346710228,1735225636663,-500.0,0.00017999,2]
[346710229,1735225636684,-500.0,0.00017999,2]
[346710230,1735225636706,-500.0,0.00017999,2]
[346710231,1735225636726,-500.0,0.00017999,2]
[346710232,1735225636748,-500.0,0.00017999,2]
[346710233,1735225636769,-500.0,0.00017999,2]
[346710234,1735225636790,-500.0,0.00017999,2]
[346710235,1735225636812,-500.0,0.00017999,2]
[346710236,1735225636835,-500.0,0.00017999,2]
[346710237,1735225636856,-197.62874935,0.00017999,2]
[346710238,1735225636878,-500.0,0.00017999,2]
[346710239,1735225636898,-500.0,0.00017999,2]
[346710240,1735225636919,-619.03020251,0.00017999,2]
[346710241,1735225636940,-500.0,0.00017999,2]
[346710242,1735225636962,-500.0,0.00017999,2]
[346710243,1735225636984,-543.86,0.00017999,2]
[346710244,1735225637006,-500.0,0.00017999,2]
[346710245,1735225637027,-500.0,0.00017999,2]
[346710246,1735225637048,-500.0,0.00017999,2]
[346710247,1735225637070,-500.0,0.00017999,2]
[346710248,1735225637091,-500.0,0.00017999,2]
[346710249,1735225637113,-500.0,0.00017999,2]
[346710250,1735225637136,-500.0,0.00017999,2]
[346710251,1735225637158,-500.0,0.00017999,2]
[346710252,1735225637180,-500.0,0.00017999,2]
[346710253,1735225637202,-500.0,0.00017999,2]
[346710254,1735225637224,-500.0,0.00017999,2]
[346710255,1735225637251,-500.0,0.00017999,2]
[346710256,1735225637273,-500.0,0.00017999,2]
[346710257,1735225637295,-500.0,0.00017999,2]
[346710258,1735225637317,-500.0,0.00017999,2]
[346710259,1735225637340,-545.42,0.00017999,2]
[346710260,1735225637363,-500.0,0.00017999,2]
[346710261,1735225637386,-500.0,0.00017999,2]
[346710262,1735225637413,-13656.77,0.00017999,2]
[346710263,1735225637436,-500.0,0.00017999,2]
[346710264,1735225637457,-431.45048861,0.00017999,2]
[346710265,1735225637483,-500.0,0.00017999,2]
[346710266,1735225637505,-500.0,0.00017999,2]
[346710267,1735225637527,-500.0,0.00017999,2]
[346710268,1735225637547,-500.0,0.00017999,2]
[346710269,1735225637569,-500.0,0.00017999,2]
[346710270,1735225637591,-500.0,0.00017999,2]
[346710271,1735225637612,-3348.88,0.00017999,2]
[346710272,1735225637635,-500.0,0.00017999,2]
[346710273,1735225637656,-182.64963597,0.00017999,2]
[346710274,1735225644112,-500.0,0.00017997,2]
[346710275,1735225644134,-500.0,0.00017998,2]
[346710276,1735225644156,-500.0,0.00017998,2]
[346710277,1735225644177,-500.0,0.00017998,2]
[346710278,1735225644198,-317.35036403,0.00017999,2]
[346710279,1735225644219,-500.0,0.00017999,2]
[346710280,1735225644242,-500.0,0.00017999,2]
[346710281,1735225644264,-564.45,0.00017999,2]
[346710282,1735225644286,-500.0,0.00017999,2]
[346710283,1735225644307,-500.0,0.00017999,2]
[346710284,1735225644328,-500.0,0.00017999,2]
[346710285,1735225644349,-500.0,0.00017999,2]
[346710286,1735225644371,-500.0,0.00017999,2]
[346710287,1735225644396,-500.0,0.00017999,2]
[346710288,1735225644417,-500.0,0.00017999,2]
[346710289,1735225644440,-297.39,0.00017999,2]
[346710290,1735225644462,-500.0,0.00017999,2]
[346710291,1735225644488,-39157.01177923,0.00018,2]
[346710292,1735225644510,-680370.69698232,0.00018,2]
[346710293,1735225646084,-500.0,0.00017998,2]
[346710294,1735225646105,-500.0,0.00017999,2]
[346710295,1735225646129,-72640.5150787,0.00018,2]
[346710296,1735225646151,-774.29726534,0.00018,2]
[346710297,1735225646172,-597981.28572608,0.00018,2]
[346710298,1735225651089,-503.7810491,0.00017999,2]
[346710299,1735225651110,-1825.92060451,0.00018,2]
[346710300,1735225654081,-500.0,0.00017998,2]
[346710301,1735225654105,-825.69,0.00017998,2]
[346710302,1735225654128,-2573.79524636,0.00018,2]
[346710304,1735225768093,-354.01072988,0.000179,2]
[346710305,1735225768116,-500.0,0.00017997,2]
[346710306,1735225768137,-500.0,0.00017997,2]
[346710307,1735225768159,-4774.35,0.00017997,2]
[346710308,1735225768180,-500.0,0.00017997,2]
[346710309,1735225768202,-1829.13,0.00017997,2]
[346710310,1735225768223,-259.25,0.00017997,2]
[346710311,1735225768244,-500.0,0.00017997,2]
[346710312,1735225768264,-500.0,0.00017997,2]
[346710313,1735225768284,-500.0,0.00017997,2]
[346710314,1735225768305,-522.7,0.00017998,2]
[346710315,1735225768325,-500.0,0.00017998,2]
[346710316,1735225768345,-964.35,0.00017998,2]
[346710317,1735225768367,-500.0,0.00017998,2]
[346710318,1735225768388,-1143.96,0.00017998,2]
[346710319,1735225768408,-500.0,0.00017998,2]
[346710320,1735225768432,-500.0,0.00017998,2]
[346710321,1735225768452,-568.26,0.00017998,2]
[346710322,1735225768474,-500.0,0.00017998,2]
[346710323,1735225768494,-500.0,0.00017998,2]
[346710324,1735225768516,-500.0,0.00017998,2]
[346710325,1735225768537,-500.0,0.00017998,2]
[346710326,1735225768557,-310.86300568,0.00017998,2]
[346710327,1735225768578,-500.0,0.00017998,2]
[346710328,1735225768601,-245.52156647,0.00017998,2]
[346710329,1735225805474,381.86501385,0.00017061,2]
[346710342,1735225832683,-163.60129156,0.000179,2]
[346710343,1735225832693,-436.39870844,0.00017997,2]
[346710429,1735225833768,-63.60129156,0.00017997,2]
[346710430,1735225833778,-500.0,0.00017997,2]
[346710431,1735225833788,-500.0,0.00017997,2]
[346710432,1735225833798,-160.69660295,0.00017997,2]
[346710433,1735225833809,-1511.56,0.00017997,2]
[346710434,1735225833818,-931.1,0.00017997,2]
[346710435,1735225833829,-771.65,0.00017997,2]
[346710436,1735225833839,-1708.28,0.00017997,2]
[346710437,1735225833850,-2119.13341701,0.00017998,2]
[346710464,1735225838654,-690.51,0.00017997,2]
[346710466,1735225838665,-500.0,0.00017997,2]
[346710468,1735225838675,-10723.08501652,0.00017998,2]
[346710469,1735225838684,-500.0,0.00017998,2]
[346710470,1735225838694,-500.0,0.00017998,2]
[346710472,1735225838703,-500.0,0.00017998,2]
[346710474,1735225838713,-500.0,0.00017998,2]
[346710475,1735225838723,-500.0,0.00017998,2]
[346710477,1735225838732,-500.0,0.00017998,2]
[346710479,1735225838741,-500.0,0.00017998,2]
[346710481,1735225838751,-533.57,0.00017998,2]
[346710482,1735225838760,-199.70935872,0.00017998,2]
[346710483,1735225838770,-730.47,0.00017998,2]
[346710484,1735225838780,-618.38,0.00017998,2]
[346710485,1735225838790,-556.12,0.00017998,2]
[346710486,1735225838800,-500.0,0.00017998,2]
[346710487,1735225838809,-500.0,0.00017999,2]
[346710488,1735225838819,-500.0,0.00017999,2]
[346710489,1735225838827,-2976.59,0.00017999,2]
[346710490,1735225838837,-439.3,0.00017999,2]
[346710491,1735225838846,-500.0,0.00017999,2]
[346710492,1735225838855,-3209.34,0.00017999,2]
[346710493,1735225838865,-540.93,0.00017999,2]
[346710494,1735225838875,-500.0,0.00017999,2]
[346710495,1735225838884,-216.64459367,0.00017999,2]
[346710496,1735225838893,-238.47848679,0.00017999,2]
[346710497,1735225838903,-177.44336515,0.00017999,2]
[346710498,1735225838915,-16741.75164973,0.00018,2]
[346710499,1735225838925,-387.14863267,0.00018,2]
[346710500,1735225838934,-29231.2064601,0.00018,2]
[346710501,1735225838952,-1394.1872915,0.00018,2]
[346710502,1735225838964,-446.20833079,0.00018,2]
[346710503,1735225839245,-80856.32212506,0.00018,2]
[346710504,1735225839257,-1245084.22403139,0.00018,2]
[346710505,1735225839808,-4281.02131243,0.00018,2]
[346710507,1735225840955,-3339.7,0.00018,2]
[346710508,1735225840967,-6135.0,0.00018,2]
[346710509,1735225840979,-6449.999995,0.00018,2]
[346710533,1735225841901,3048.17418615,0.00017,2]
[346710540,1735225843617,-2010.16297545,0.00017,2]
[346710541,1735225843627,-500.0,0.00017998,2]
[346710542,1735225843637,-1323273.6596896,0.00018,2]
[346710543,1735225843674,-254.8652023,0.00018,2]
[346710554,1735225844004,-645.7628936,0.00018,2]
[346710555,1735225844016,-734138.06503049,0.00018,2]
[346710556,1735225844029,-1030.0,0.00018,2]
[346710570,1735225847091,-258.85573929,0.00017997,2]
[346710574,1735225847190,-241.14426071,0.00017997,2]
[346710575,1735225847199,-2737.99339872,0.00018,2]
[346710576,1735226329815,1000.0,0.00023,120]
[346710577,1735226332561,1000.0,0.00023,120]
[346710578,1735226339564,1000.0,0.00023,120]
[346710581,1735226491013,1000.0,0.00023,120]
[346710582,1735226493592,1000.0,0.00023,120]
[346710585,1735226836135,-400.0,0.00013973,2]
[346710586,1735226836169,-2285.8920321,0.00016311,2]
[346710587,1735226836194,-206.1129178,0.00016346,2]
[346710588,1735226836216,-53.02723072,0.00016495,2]
[346710593,1735226946126,-899.57992369,0.00011,2]
[346710594,1735226946148,-1311.97138328,0.00012633,2]
[346710595,1735226946169,-1935.74439063,0.00012642,2]
[346710596,1735226946190,-988.74618473,0.00013497,2]
[346710597,1735226946211,-174.92482586,0.00016495,2]
[346710598,1735226946233,-812.9989344,0.00016514,2]
[346710599,1735226946255,-250.0,0.00016617,2]
[346710600,1735226946276,-2330.9509373,0.00016978,2]
[346710601,1735226946298,-500.9557417,0.00016995,2]
[346710602,1735226946320,-300.0,0.00016999,2]
[346710603,1735226946342,-300.0,0.00016999,2]
[346710604,1735226946363,-1000.0,0.00017,17]
[346710605,1735226946383,-201.49695372,0.00017,7]
[346710606,1735226946407,-151.0,0.00017051,2]
[346710607,1735226946427,-5000.0,0.00017061,2]
[346710608,1735226946447,-151.0,0.00017151,2]
[346710609,1735226946467,-1444.39823167,0.00017151,2]
[346710610,1735226965110,-318.60965691,0.00017895,2]
[346710611,1735226965131,-500.14520656,0.00017973,2]
[346710612,1735226965152,-500.0,0.00017989,2]
[346710613,1735226965172,-500.0,0.00017989,2]
[346710614,1735226965192,-500.0,0.00017989,2]
[346710615,1735226965213,-160.0,0.00017989,2]
[346710616,1735226965234,-275.57431374,0.00017989,2]
[346710617,1735226965255,-500.0,0.00017989,2]
[346710618,1735226965278,-500.0,0.00017989,2]
[346710619,1735226965300,-563.89181822,0.00017989,2]
[346710620,1735226965322,-311.65579713,0.00017989,2]
[346710621,1735226965343,-12947.88145264,0.0001799,10]
[346710622,1735226967121,-105551.70563222,0.0001799,10]
[346710649,1735227031996,-228.42538608,0.00017894,2]
[346710650,1735227032006,-1168.83,0.00017989,2]
[346710651,1735227032015,-500.0,0.00017989,2]
[346710652,1735227032025,-500.0,0.00017989,2]
[346710653,1735227032034,-300.0,0.00017989,2]
[346710654,1735227032044,-300.0,0.00017989,2]
[346710656,1735227032053,-500.0,0.00017989,2]
[346710657,1735227032064,-500.0,0.00017989,2]
[346710658,1735227032073,-500.0,0.00017989,2]
[346710659,1735227032082,-500.0,0.00017989,2]
[346710660,1735227032092,-500.0,0.00017989,2]
[346710662,1735227032101,-500.0,0.00017989,2]
[346710664,1735227032111,-8462.51132277,0.0001799,10]
[346710666,1735227032122,-12462.76032861,0.0001799,10]
[346710672,1735227037809,-444.94761539,0.00017989,2]
[346710673,1735227037818,-1372.97626208,0.0001799,10]
[346710710,1735227040007,-76714.09930004,0.0001799,10]
[346710711,1735227040019,-716.83017252,0.0001799,10]
[346710735,1735227043046,-500.0,0.00017989,2]
[346710736,1735227043056,-13660.33197495,0.0001799,10]
[346710742,1735227043167,-1654.55450738,0.0001799,10]
[346710743,1735227043179,-779.38039215,0.0001799,10]
[346710744,1735227043190,-1722.48837836,0.0001799,10]
[346710745,1735227043202,-1857945.69,0.0001799,10]
[346710751,1735227045938,-2436.89484,0.0001799,10]
[346710756,1735227267740,500.0,0.00020508,120]
[346710758,1735227946128,-400.0,0.00013973,2]
[346710759,1735227946150,-300.0,0.00016998,2]
[346710760,1735227946171,-62.80261333,0.00016998,2]
[346710761,1735228025220,-199.87221282,0.00016899,2]
[346710762,1735228025244,-300.0,0.00016997,2]
[346710763,1735228025271,-300.0,0.00016997,2]
[346710764,1735228025301,-621.436077,0.00016998,2]
[346710765,1735228025323,-500.0,0.00016998,2]
[346710766,1735228025346,-500.0,0.00016998,2]
[346710767,1735228025367,-206.87680361,0.00016998,2]
[346710768,1735228051144,-245.6821106,0.00016998,2]
[346710769,1735228051167,-500.0,0.00016998,2]
[346710770,1735228051189,-500.0,0.00016998,2]
[346710771,1735228051212,-500.0,0.00016998,2]
[346710772,1735228051235,-193.02268672,0.00016998,2]
[346710777,1735228154106,-174.8881862,0.00016899,2]
[346710778,1735228154128,-32.61811896,0.00016997,2]
[346710779,1735228157103,-213.38188104,0.00016997,2]
[346710780,1735228157125,-308.01541621,0.00016998,2]
[346710781,1735228157146,-500.0,0.00016998,2]
[346710782,1735228157167,-200.13415461,0.00016998,2]
[346710783,1735228157187,-500.0,0.00016998,2]
[346710784,1735228157209,-500.0,0.00016998,2]
[346710785,1735228157231,-500.0,0.00016998,2]
[346710786,1735228157252,-500.0,0.00016998,2]
[346710787,1735228157285,-500.0,0.00016998,2]
[346710788,1735228157306,-464.46284393,0.00016998,2]
[346710789,1735228157332,-500.0,0.00016998,2]
[346710790,1735228157356,-500.0,0.00016998,2]
[346710791,1735228157380,-500.0,0.00016998,2]